bitfinex-derivatives/quotes_BTCF0:USTF0_20251217
["timestamp","ask_amount","ask_price","bid_price","bid_amount"]
[1765986251076,0.3608,88669.0,88636.0,0.00468203]
[1765986251077,0.0112833,88655.0,88636.0,0.00468203]
[1765986251389,0.3608,88669.0,88621.0,1.40936]
[1765986251390,0.3608,88637.0,88621.0,1.40936]
[1765986251690,0.3608,88627.0,88603.0,0.82825]
[1765986251880,0.3608,88627.0,88612.0,0.3608]
[1765986252375,0.0001692,88630.0,88601.0,0.37209]
[1765986252376,0.0001692,88630.0,88613.0,0.3608]
[1765986252581,0.36091523,88636.0,88601.0,0.3608]
[1765986252582,3e-08,88636.0,88624.0,0.3608]
[1765986252776,0.3608,88625.0,88603.0,0.3608]
[1765986253077,0.3608,88617.0,88596.0,0.01128713]
[1765986253283,0.3608,88617.0,88586.0,0.0112884]
[1765986253284,0.54986,88666.0,88602.0,0.82825]
[1765986253481,0.3608,88655.0,88645.0,0.3608]
[1765986253675,0.00016919,88659.0,88645.0,0.3608]
[1765986253987,0.3608,88653.0,88623.0,0.3608]
[1765986254195,0.51458927,88650.0,88631.0,0.3608]
[1765986254582,0.001,88656.0,88641.0,0.3608]
[1765986254783,0.51458927,88651.0,88641.0,0.34071]
[1765986254983,0.3608,88648.0,88641.0,0.15163]
[1765986255283,0.3608,88648.0,88630.0,0.3608]
[1765986256085,0.001,88656.0,88620.0,0.82825]
[1765986256290,5e-08,88661.0,88656.0,0.0112831]
[1765986256478,0.011,88681.0,88660.0,0.3608]
[1765986256683,0.011,88681.0,88676.0,0.3608]
[1765986256882,0.011,88681.0,88660.0,0.3608]
[1765986257090,0.011,88681.0,88680.0,0.3608]
[1765986257294,1e-07,88681.0,88680.0,0.3608]
[1765986257481,1e-07,88681.0,88672.0,9e-08]
[1765986257682,0.3608001,88681.0,88672.0,9e-08]
[1765986258096,0.3608,88674.0,88656.0,0.001]
[1765986258388,0.3608,88662.0,88650.0,0.3608]
[1765986258689,0.3608,88655.0,88642.0,0.3608]
[1765986258890,0.3608,88655.0,88631.0,0.3608]
[1765986258891,0.3608,88647.0,88631.0,0.3608]
[1765986259393,0.00016919,88648.0,88619.0,0.3608]
[1765986259990,0.3608,88647.0,88620.0,0.0112876]
[1765986260190,0.00016919,88648.0,88645.0,0.3608]
[1765986260493,1e-07,88681.0,88658.0,0.0112829]
[1765986260680,1e-07,88681.0,88641.0,0.72096]
[1765986260681,1e-07,88681.0,88679.0,0.3608]
[1765986260882,1e-07,88681.0,88668.0,0.3608]
[1765986261095,0.0112742,88726.0,88680.0,0.82825]
[1765986261390,0.0112742,88726.0,88665.0,0.0564099]
[1765986261391,0.3608,88695.0,88687.0,0.00016919]
[1765986261597,0.3608,88695.0,88662.0,0.3608]
[1765986261598,0.0112786,88692.0,88662.0,0.3608]
[1765986261798,0.3608,88684.0,88662.0,0.3608]
[1765986261983,0.3608,88684.0,88671.0,0.3608]
[1765986262182,0.3720796,88684.0,88652.0,0.82825]
[1765986262385,0.3608,88676.0,88656.0,0.3608]
[1765986262585,0.3608,88674.0,88656.0,0.3608]
[1765986262981,0.3608,88674.0,88668.0,0.002]
[1765986263185,0.3608,88674.0,88656.0,0.3608]
[1765986263386,0.3608,88666.0,88649.0,0.3608]
[1765986263789,0.3608,88666.0,88641.0,0.3608]
[1765986263790,0.001,88674.0,88659.0,0.3608]
[1765986263985,0.3608,88663.0,88641.0,0.3608]
[1765986264191,0.0112834,88654.0,88641.0,0.3608]
[1765986264388,0.3608,88655.0,88631.0,0.3608]
[1765986264389,0.34413,88655.0,88639.0,0.0112852]
[1765986264695,0.001,88674.0,88655.0,0.0112832]
[1765986264895,0.0112799,88682.0,88664.0,0.3608]
[1765986265191,0.0112808,88675.0,88653.0,0.3608]
[1765986265393,0.3608,88683.0,88653.0,0.3608]
[1765986265596,0.3608,88673.0,88659.0,0.00016919]
[1765986265988,0.3608,88675.0,88662.0,0.3608]
[1765986266385,0.3608,88675.0,88664.0,0.3608]
[1765986266586,0.00016919,88677.0,88664.0,0.3608]
[1765986266786,0.001,88673.0,88664.0,0.3608]
[1765986266986,0.3608,88669.0,88659.0,0.00016919]
[1765986267300,0.3608,88697.0,88668.0,0.3608]
[1765986267491,0.3608,88708.0,88682.0,0.3608]
[1765986267803,0.3608,88691.0,88675.0,0.3608]
[1765986267989,0.3608,88689.0,88669.0,0.0112814]
[1765986268297,0.3608,88697.0,88670.0,0.00016919]
[1765986268486,0.0112793,88686.0,88673.0,0.3608]
[1765986268693,0.3608,88674.0,88670.0,0.00016919]
[1765986269091,0.3608,88674.0,88666.0,0.01127822]
[1765986269298,0.3608,88674.0,88656.0,0.01127949]
[1765986269602,0.3608,88665.0,88656.0,9e-08]
[1765986269900,0.71774,88685.0,88650.0,0.0112838]
[1765986270101,0.3608,88661.0,88636.0,0.37208203]
[1765986270286,0.3608,88651.0,88641.0,0.0112849]
[1765986270490,0.3608,88651.0,88636.0,0.37208203]
[1765986270893,0.27745,88651.0,88637.0,0.0112854]
[1765986271089,0.26078,88651.0,88636.0,0.37208203]
[1765986271291,0.26078,88651.0,88626.0,1e-08]
[1765986271292,0.0112863,88632.0,88626.0,1e-08]
[1765986271506,0.3608,88627.0,88616.0,4.58e-06]
[1765986271799,0.3608,88617.0,88606.0,3e-08]
[1765986272204,0.81493,88626.0,88588.0,0.2154]
[1765986272392,0.81493,88626.0,88579.0,0.0112928]
[1765986272393,0.011289,88610.0,88579.0,0.0112928]
[1765986272588,0.011289,88610.0,88566.0,0.82825]
[1765986272589,0.81493,88610.0,88577.0,0.0112931]
[1765986272798,0.00016929,88612.0,88568.0,0.08028021]
[1765986272996,0.00016929,88612.0,88582.0,0.0112925]
[1765986273194,7e-08,88612.0,88578.0,0.06020293]
[1765986273395,7e-08,88612.0,88590.0,0.0112915]
[1765986273602,0.001,88610.0,88582.0,0.06020293]
[1765986273798,0.001,88610.0,88591.0,0.0112913]
[1765986273998,0.001,88610.0,88583.0,0.06020293]
[1765986274205,7e-08,88612.0,88591.0,0.0112913]
[1765986274402,5.211e-05,88611.0,88594.0,0.0112909]
[1765986274591,5.211e-05,88611.0,88593.0,0.00016929]
[1765986274902,0.51586962,88650.0,88623.0,0.0112872]
[1765986275100,0.0112816,88668.0,88607.0,0.0112893]
[1765986275308,0.8262115,88669.0,88636.0,0.0112856]
[1765986275502,0.0112809,88674.0,88632.0,0.82825]
[1765986275726,0.0112778,88698.0,88652.0,0.0112824]
[1765986275727,0.08849384,88693.0,88652.0,0.0112824]
[1765986275895,1.33079962,88700.0,88659.0,0.0112816]
[1765986275896,0.00016917,88675.0,88659.0,0.0112816]
[1765986276204,0.011,88701.0,88658.0,0.00016917]
[1765986276500,0.02888566,88712.0,88693.0,0.0112772]
[1765986276694,0.0222725,88731.0,88689.0,0.38104]
[1765986276898,0.51586962,88710.0,88659.0,0.29076107]
[1765986277100,0.51586962,88710.0,88662.0,0.0112812]
[1765986277101,0.001,88675.0,88662.0,0.0112812]
[1765986277304,0.00016917,88693.0,88667.0,0.0112805]
[1765986277602,0.01144647,88693.0,88660.0,0.00016917]
[1765986277790,0.00016917,88693.0,88660.0,0.01145057]
[1765986277996,0.00016917,88693.0,88660.0,0.00016917]
[1765986278297,0.0112774,88692.0,88660.0,0.00016917]
[1765986278600,0.00016917,88693.0,88660.0,0.00016917]
[1765986278802,0.00016917,88693.0,88667.0,0.0112805]
[1765986279100,0.00016917,88693.0,88666.0,0.01127822]
[1765986279599,0.0112792,88678.0,88666.0,0.01127822]
[1765986279804,0.011279,88680.0,88666.0,0.01127822]
[1765986280105,0.51586962,88690.0,88660.0,0.00016917]
[1765986280495,0.00116917,88693.0,88673.0,0.0112798]
[1765986280794,0.0112742,88718.0,88684.0,0.0112783]
[1765986281001,0.011275,88711.0,88679.0,0.011279]
[1765986281200,0.51586962,88720.0,88681.0,0.0112787]
[1765986281406,0.0112758,88705.0,88675.0,0.0112795]
[1765986281701,0.011,88711.0,88681.0,0.00016917]
[1765986281907,0.00016917,88699.0,88681.0,7e-08]
[1765986282695,0.0112779,88688.0,88681.0,7e-08]
[1765986282895,0.00016917,88699.0,88681.0,7e-08]
[1765986283098,0.0112784,88684.0,88681.0,7e-08]
[1765986283289,0.0112787,88682.0,88681.0,7e-08]
[1765986283491,0.0112804,88669.0,88656.0,0.01127949]
[1765986283700,0.7386,88673.0,88648.0,0.04038266]
[1765986283899,0.7386,88673.0,88645.0,0.04038266]
[1765986283900,0.0112804,88669.0,88645.0,0.04038266]
[1765986284093,0.0112804,88669.0,88646.0,0.05166342]
[1765986284303,0.0112808,88666.0,88646.0,0.05166342]
[1765986284498,0.00016917,88665.0,88647.0,0.00016917]
[1765986284692,0.00016917,88665.0,88650.0,0.0112827]
[1765986284890,0.00016917,88665.0,88647.0,0.04055183]
[1765986284891,0.00016917,88665.0,88648.0,0.04038266]
[1765986285101,0.00016917,88665.0,88650.0,0.0112827]
[1765986285407,0.3608,88663.0,88654.0,0.0112822]
[1765986285598,0.3608,88673.0,88659.0,0.3608]
[1765986285798,0.87339,88696.0,88668.0,0.3608]
[1765986286105,0.011,88691.0,88683.0,0.3608]
[1765986286298,0.011,88691.0,88652.0,0.04038266]
[1765986286299,0.8846677,88690.0,88652.0,0.04038266]
[1765986286607,0.8846677,88690.0,88629.0,0.86037]
[1765986286608,0.0112832,88647.0,88626.0,0.01128331]
[1765986286798,0.00016917,88645.0,88634.0,0.3608]
[1765986287103,0.00016917,88645.0,88632.0,0.3608]
[1765986287104,0.36096917,88645.0,88632.0,0.3608]
[1765986287497,0.36096917,88645.0,88628.0,0.00016917]
[1765986287498,0.3608,88637.0,88628.0,0.00016917]
[1765986287700,0.3608,88637.0,88626.0,0.01128331]
[1765986288004,0.36096917,88645.0,88634.0,0.3608]
[1765986288198,0.00016917,88645.0,88642.0,0.3608]
[1765986288392,7e-08,88645.0,88642.0,0.3608]
[1765986288806,0.34413007,88647.0,88637.0,0.3608]
[1765986289000,0.3608,88658.0,88637.0,0.3608]
[1765986289395,0.3608,88658.0,88626.0,0.01128331]
[1765986289595,0.3608,88658.0,88638.0,0.3608]
[1765986289808,0.00016917,88657.0,88640.0,0.0112839]
[1765986290107,0.3608,88668.0,88653.0,0.3608]
[1765986290407,0.3608,88668.0,88656.0,0.3608]
[1765986291309,0.3608,88702.0,88667.0,0.3608]
[1765986291498,0.3608,88684.0,88668.0,0.3608]
[1765986291805,0.51586962,88690.0,88668.0,0.3608]
[1765986291995,0.3608,88684.0,88669.0,0.3608]
[1765986292195,0.87339,88693.0,88675.0,0.3608]
[1765986292395,0.3608,88686.0,88669.0,0.3720802]
[1765986292601,0.3608,88686.0,88669.0,0.3608]
[1765986293309,0.012,88691.0,88679.0,0.3608]
[1765986293506,0.3608,88694.0,88669.0,0.36096917]
[1765986293507,0.32746,88694.0,88683.0,0.3608]
[1765986293712,0.0222763,88701.0,88693.0,0.3608]
[1765986294009,19.96666,88700.0,88693.0,0.3608]
[1765986294210,17.9301172,88700.0,88697.0,0.0112767]
[1765986294417,3.7846249,88700.0,88699.0,0.3608]
[1765986294610,0.011,88741.0,88720.0,0.0112738]
[1765986294915,0.011,88741.0,88720.0,0.7216]
[1765986295205,1e-07,88741.0,88740.0,0.3608]
[1765986295411,0.05909176,88777.0,88746.0,0.0112704]
[1765986295603,0.00010747,88762.0,88760.0,0.7216]
[1765986295803,1e-07,88761.0,88760.0,0.7216]
[1765986296198,1e-07,88761.0,88760.0,0.3608]
[1765986296609,0.5637201,88761.0,88760.0,0.3608]
[1765986297514,1e-07,88761.0,88760.0,0.3628]
[1765986298100,0.5637201,88761.0,88745.0,0.00016907]
[1765986298411,0.56372,88759.0,88745.0,0.00016907]
[1765986298710,0.3608,88751.0,88745.0,7e-08]
[1765986298912,0.56372,88748.0,88745.0,7e-08]
[1765986299210,0.56372,88750.0,88745.0,7e-08]
[1765986299405,0.56372,88755.0,88745.0,7e-08]
[1765986299609,0.56372,88755.0,88752.0,0.3608]
[1765986299804,1e-07,88761.0,88745.0,0.00200007]
[1765986299998,0.82922,88758.0,88745.0,0.00200007]
[1765986300205,0.82922,88758.0,88745.0,7e-08]
[1765986300206,0.3608,88753.0,88745.0,7e-08]
[1765986300506,1e-07,88761.0,88749.0,0.3608]
[1765986300708,1e-07,88761.0,88760.0,0.3608]
[1765986300907,7e-08,88771.0,88761.0,0.0112686]
[1765986301111,0.83362,88804.0,88760.0,0.3608]
[1765986301112,0.05909176,88808.0,88778.0,0.0112664]
[1765986301416,1e-07,88811.0,88806.0,0.0112629]
[1765986301597,1e-07,88811.0,88810.0,0.3608]
[1765986301802,1e-07,88811.0,88810.0,0.7216]
[1765986302004,1e-07,88811.0,88810.0,0.3608]
[1765986302201,1e-07,88811.0,88802.0,0.00016897]
[1765986302202,0.41513417,88811.0,88802.0,0.00016897]
[1765986302411,1e-07,88811.0,88802.0,0.00016897]
[1765986302912,0.41513417,88811.0,88797.0,0.3608]
[1765986303105,0.0112648,88791.0,88771.0,0.3608]
[1765986303305,0.3608,88772.0,88756.0,0.01126678]
[1765986303609,1.25434962,88790.0,88746.0,0.01126805]
[1765986303610,0.8753,88774.0,88746.0,0.01126805]
[1765986303811,0.00016897,88769.0,88751.0,0.00016897]
[1765986304209,0.41513407,88768.0,88751.0,0.00016897]
[1765986304515,0.41513407,88768.0,88726.0,0.02254359]
[1765986304516,0.8865694,88755.0,88736.0,2e-08]
[1765986304814,0.8753,88755.0,88736.0,2e-08]
[1765986305012,0.7216,88737.0,88736.0,2e-08]
[1765986305500,1.13682106,88737.0,88716.0,0.01127186]
[1765986305702,0.3608,88717.0,88694.0,0.00013266]
[1765986306002,0.8753,88696.0,88666.0,0.01127822]
[1765986306204,0.51595661,88716.0,88671.0,0.01128]
[1765986306205,0.3608,88679.0,88671.0,0.01128]
[1765986306412,0.3608,88698.0,88678.0,0.3608]
[1765986306615,0.00016907,88697.0,88679.0,0.00016907]
[1765986306913,0.00016907,88697.0,88686.0,0.3608]
[1765986306914,0.38196314,88697.0,88686.0,0.3608]
[1765986307111,0.3608,88690.0,88679.0,0.00016907]
[1765986307305,0.00013958,88696.0,88689.0,0.3608]
[1765986307500,0.00013958,88696.0,88693.0,0.3608]
[1765986307704,0.8753,88732.0,88699.0,0.0112764]
[1765986307919,0.8753,88732.0,88707.0,0.00016907]
[1765986307920,0.3608,88717.0,88707.0,0.00016907]
[1765986308111,0.3608,88708.0,88693.0,0.3608]
[1765986308417,0.3608,88708.0,88684.0,0.3608]
[1765986308418,0.3608,88698.0,88684.0,0.3608]
[1765986308711,0.7386,88718.0,88665.0,0.3608]
[1765986308712,0.0112782,88686.0,88665.0,0.3608]
[1765986308908,0.0112782,88686.0,88656.0,0.37207949]
[1765986308909,0.3608,88667.0,88656.0,0.01127949]
[1765986309103,0.3608,88667.0,88653.0,0.00016916]
[1765986309104,0.3608,88657.0,88653.0,0.00016916]
[1765986309319,8.007e-05,88656.0,88646.0,0.01128076]
[1765986309613,0.3608,88654.0,88646.0,0.01128076]
[1765986309812,0.3608,88654.0,88628.0,0.06024858]
[1765986309813,0.87817,88653.0,88628.0,0.06024858]
[1765986310008,0.3608,88638.0,88626.0,0.01128331]
[1765986310218,0.0112814,88661.0,88626.0,0.01128331]
[1765986310219,0.87817,88709.0,88660.0,0.63824]
[1765986310402,0.40000002,88708.0,88699.0,0.29412]
[1765986310602,0.76080002,88708.0,88680.0,0.3608]
[1765986311008,0.76080002,88708.0,88683.0,0.3608]
[1765986311009,0.46584,88707.0,88683.0,0.3608]
[1765986311208,0.00013938,88706.0,88660.0,0.63824]
[1765986311513,0.00013938,88706.0,88647.0,0.001]
[1765986311514,0.0112788,88681.0,88647.0,0.001]
[1765986311722,0.83587,88662.0,88645.0,9.244e-05]
[1765986311926,2.34341782,88680.0,88606.0,0.01128585]
[1765986311927,0.0112837,88643.0,88626.0,3.31e-06]
[1765986312215,0.63184,88642.0,88626.0,3.31e-06]
[1765986312422,0.73916,88641.0,88626.0,3.31e-06]
[1765986312609,0.73916,88641.0,88625.0,2.47e-06]
[1765986312810,0.0112856,88628.0,88616.0,7.05e-06]
[1765986313006,0.0112856,88628.0,88603.0,0.06024858]
[1765986313316,0.39011098,88627.0,88601.0,0.06024858]
[1765986313517,0.36836,88626.0,88613.0,0.3608]
[1765986313708,0.39000002,88626.0,88613.0,0.3608]
[1765986314220,0.3608,88624.0,88613.0,0.3608]
[1765986314412,0.73928,88624.0,88615.0,0.3608]
[1765986314718,0.39000002,88626.0,88615.0,0.3608]
[1765986315023,0.39000002,88626.0,88625.0,0.3608]
[1765986315224,2.3e-07,88628.0,88625.0,0.3608]
[1765986315410,0.3608,88626.0,88611.0,3.56e-06]
[1765986315607,0.3608,88626.0,88597.0,0.0112894]
[1765986315814,0.3608,88618.0,88596.0,0.37208713]
[1765986316219,0.3608,88609.0,88596.0,0.37208713]
[1765986316418,0.3608,88609.0,88596.0,0.30540713]
[1765986316717,0.00010979,88617.0,88608.0,0.0112881]
[1765986317020,0.00010979,88617.0,88605.0,0.3608]
[1765986317318,0.3608,88612.0,88594.0,0.00016904]
[1765986317719,0.3608,88612.0,88596.0,0.001]
[1765986317919,0.3608,88612.0,88602.0,0.3608]
[1765986318225,0.3608,88612.0,88597.0,0.3608]
[1765986318414,0.00010979,88617.0,88611.0,0.3608]
[1765986318916,0.3608,88616.0,88598.0,0.0112892]
[1765986319117,0.3608,88616.0,88597.0,0.3608]
[1765986319323,0.00010979,88617.0,88611.0,0.3608]
[1765986319523,6e-08,88621.0,88605.0,0.001]
[1765986319818,0.3608,88610.0,88594.0,0.00016904]
[1765986320022,0.3608,88602.0,88594.0,0.00016904]
[1765986320318,0.3608,88595.0,88576.0,0.01128968]
[1765986320527,0.3608,88587.0,88576.0,0.01128968]
[1765986320718,0.83587,88586.0,88547.0,0.0400885]
[1765986321023,0.83587,88586.0,88532.0,0.88132]
[1765986321024,0.83314,88550.0,88532.0,0.04001095]
[1765986321207,0.83314,88550.0,88510.0,0.06024858]
[1765986321208,0.3608,88533.0,88510.0,0.06024858]
[1765986321409,0.3608,88527.0,88521.0,0.00016937]
[1765986321618,0.36090846,88527.0,88506.0,0.01129861]
[1765986321819,0.7216,88507.0,88506.0,0.01129861]
[1765986322027,2e-08,88507.0,88506.0,0.01129861]
[1765986322524,0.3720962,88545.0,88509.0,0.0113007]
[1765986322723,0.3608,88514.0,88506.0,0.01129861]
[1765986322918,0.3608,88514.0,88500.0,0.0001]
[1765986322919,0.3608,88513.0,88482.0,0.30495372]
[1765986323113,0.00016948,88506.0,88482.0,0.30495372]
[1765986323314,0.3608,88494.0,88480.0,0.0113044]
[1765986323617,0.3608,88507.0,88479.0,0.3608]
[1765986323618,0.08719,88507.0,88493.0,0.27458052]
[1765986324023,0.3608,88509.0,88493.0,0.27058052]
[1765986324224,0.3608,88505.0,88481.0,0.3608]
[1765986324428,0.3608,88494.0,88466.0,0.02260981]
[1765986324625,0.3608,88494.0,88476.0,0.01147192]
[1765986324626,0.3608,88484.0,88476.0,0.01147192]
[1765986324815,0.45408,88484.0,88476.0,0.01147192]
[1765986325022,0.00010659,88483.0,88476.0,0.01147192]
[1765986325416,0.4,88482.0,88476.0,2e-08]
[1765986325615,0.0113051,88475.0,88466.0,1e-08]
[1765986325930,0.0113053,88473.0,88447.0,0.3608]
[1765986326119,0.0113053,88473.0,88436.0,0.37210755]
[1765986326120,0.3608,88514.0,88468.0,0.3608]
[1765986326327,0.27128,88513.0,88500.0,0.3608]
[1765986326522,0.01184404,88526.0,88517.0,0.0112996]
[1765986326727,0.3608,88542.0,88480.0,0.3608]
[1765986326728,0.31888,88520.0,88480.0,0.3608]
[1765986327026,0.31888,88520.0,88430.0,0.08028021]
[1765986327027,0.61843844,88490.0,88430.0,0.08028021]
[1765986327227,0.0113048,88478.0,88456.0,9e-08]
[1765986327433,0.61843844,88480.0,88456.0,9e-08]
[1765986327434,0.3608,88457.0,88456.0,9e-08]
[1765986327730,0.3608,88457.0,88436.0,0.37210755]
[1765986327731,0.34949629,88457.0,88436.0,0.37210755]
[1765986327915,0.34949629,88457.0,88436.0,0.38341745]
[1765986328115,0.34949629,88457.0,88436.0,0.37210755]
[1765986328320,0.34949629,88457.0,88436.0,5e-08]
[1765986328321,0.0113099,88438.0,88436.0,5e-08]
[1765986328626,1.77308,88437.0,88416.0,4e-08]
[1765986328933,0.3608,88418.0,88416.0,4e-08]
[1765986329128,0.3608,88418.0,88396.0,1e-08]
[1765986329339,0.3608,88398.0,88387.0,0.0113163]
[1765986329625,0.00016958,88416.0,88397.0,0.3608]
[1765986329826,0.3608,88404.0,88376.0,0.01131523]
[1765986330027,0.00016958,88416.0,88376.0,0.11113061]
[1765986330028,0.3608,88415.0,88376.0,0.11113061]
[1765986330223,0.00016958,88416.0,88409.0,0.3608]
[1765986330425,0.00016958,88416.0,88376.0,0.01131523]
[1765986330426,0.00016958,88416.0,88391.0,0.3608]
[1765986330730,0.0113136,88409.0,88396.0,0.3608]
[1765986330933,0.3608,88397.0,88380.0,0.3721171]
[1765986331137,8e-08,88416.0,88398.0,0.0113148]
[1765986331426,8e-08,88416.0,88413.0,0.7216]
[1765986331631,8e-08,88421.0,88415.0,0.3608]
[1765986332432,8e-08,88431.0,88415.0,0.3608]
[1765986332632,8e-08,88431.0,88414.0,0.00016968]
[1765986333130,0.3608,88425.0,88414.0,0.00016968]
[1765986333336,0.3608,88417.0,88396.0,0.01131267]
[1765986333629,0.3608,88401.0,88396.0,0.01131267]
[1765986333830,0.3608,88401.0,88396.0,7e-08]
[1765986334029,0.3608,88397.0,88396.0,7e-08]
[1765986334231,0.3608,88413.0,88396.0,7e-08]
[1765986334434,0.00016968,88413.0,88396.0,7e-08]
[1765986334821,0.00016968,88413.0,88399.0,0.3608]
[1765986335229,0.3608,88400.0,88396.0,7e-08]
[1765986336533,0.00016968,88413.0,88399.0,0.7216]
[1765986336735,0.3608,88440.0,88407.0,0.3608]
[1765986336934,0.3608,88440.0,88430.0,0.3608]
[1765986337131,0.0113101,88436.0,88422.0,0.3608]
[1765986337332,0.0113101,88436.0,88409.0,0.3608]
[1765986337333,0.0113111,88428.0,88398.0,0.3608]
[1765986337641,0.36080008,88431.0,88409.0,0.3608]
[1765986337823,0.36080008,88431.0,88396.0,7e-08]
[1765986337824,0.00016968,88429.0,88413.0,0.3608]
[1765986338024,0.011,88441.0,88418.0,0.0113123]
[1765986338326,0.011306,88468.0,88421.0,0.88132]
[1765986338633,0.27576,88469.0,88430.0,0.8926307]
[1765986338939,0.0113051,88475.0,88440.0,0.88132]
[1765986339137,0.0113059,88469.0,88432.0,0.00016968]
[1765986339332,0.0113072,88459.0,88434.0,0.96104609]
[1765986339522,0.62254318,88480.0,88434.0,0.88132]
[1765986339726,0.0113082,88451.0,88434.0,0.88132]
[1765986339934,0.0113082,88451.0,88438.0,0.3608]
[1765986339935,0.0113096,88440.0,88438.0,0.3608]
[1765986340235,0.0113098,88438.0,88436.0,5e-08]
[1765986340435,0.3608,88437.0,88426.0,0.01130883]
[1765986340637,0.3608,88457.0,88434.0,0.3608]
[1765986340936,0.3608,88457.0,88426.0,0.01130883]
[1765986340937,0.3608,88438.0,88426.0,3e-08]
[1765986341133,0.32746,88438.0,88427.0,0.0113112]
[1765986341435,0.3608,88464.0,88437.0,0.3608]
[1765986341628,0.3608,88460.0,88442.0,0.87839]
[1765986341828,0.3608,88452.0,88433.0,0.3608]
[1765986342028,0.3608,88452.0,88426.0,3e-08]
[1765986342029,0.34413,88452.0,88434.0,0.3608]
[1765986342230,0.34429958,88452.0,88434.0,0.00016958]
[1765986342540,0.011,88461.0,88450.0,0.3608]
[1765986342727,1.41404,88479.0,88460.0,0.3608]
[1765986342928,1.41404,88479.0,88440.0,0.3608]
[1765986343126,0.34413,88442.0,88432.0,0.09981538]
[1765986343323,0.0113062,88466.0,88439.0,0.3608]
[1765986343532,0.3608,88462.0,88448.0,0.3608]
[1765986344133,0.3608,88462.0,88452.0,0.3608]
[1765986344339,0.3608,88462.0,88448.0,0.3608]
[1765986344538,0.00016958,88464.0,88456.0,0.3608]
[1765986344941,0.00016958,88464.0,88443.0,0.0113091]
[1765986344942,0.0113085,88449.0,88436.0,0.01130755]
[1765986345133,0.0113078,88454.0,88436.0,0.01130755]
[1765986345444,0.3608,88448.0,88436.0,0.01130755]
[1765986345630,0.3608,88459.0,88438.0,0.3608]
[1765986345938,0.3608,88462.0,88440.0,0.00016958]
[1765986346233,0.31079,88454.0,88440.0,0.00016958]
[1765986346439,0.3608,88444.0,88440.0,0.00016958]
[1765986346634,0.00016958,88464.0,88441.0,0.3608]
[1765986346844,0.00016958,88464.0,88440.0,0.00016958]
[1765986347034,0.00016958,88464.0,88444.0,0.3608]
[1765986347237,0.3608,88490.0,88464.0,0.8896964]
[1765986347426,0.3721026,88495.0,88481.0,0.3608]
[1765986347631,0.3608,88492.0,88467.0,0.87839]
[1765986347848,0.3608,88473.0,88453.0,0.13852282]
[1765986348036,0.3608,88477.0,88453.0,0.49932282]
[1765986348230,0.00016958,88474.0,88456.0,0.00016958]
[1765986348544,0.0113059,88469.0,88456.0,0.00016958]
[1765986348734,0.0113074,88457.0,88456.0,8e-08]
[1765986348934,0.0113074,88457.0,88436.0,0.01130755]
[1765986348935,0.0113077,88455.0,88436.0,0.01130755]
[1765986349133,0.21628,88471.0,88436.0,0.01130755]
[1765986349334,0.0113073,88458.0,88456.0,9e-08]
[1765986349540,0.21628,88471.0,88456.0,9e-08]
[1765986349738,0.3608,88458.0,88446.0,6e-08]
[1765986349935,0.011309,88444.0,88443.0,4e-08]
[1765986350148,0.011309,88444.0,88423.0,5e-08]
[1765986350149,0.0113113,88427.0,88423.0,5e-08]
[1765986350343,0.3608,88429.0,88416.0,0.88970011]
[1765986350544,0.3608,88449.0,88426.0,0.3608]
[1765986350840,0.3608,88449.0,88436.0,0.3608]
[1765986350841,0.0270272,88448.0,88436.0,0.3608]
[1765986351140,0.0270272,88447.0,88436.0,0.3608]
[1765986351338,0.3608,88469.0,88445.0,0.3608]
[1765986351540,0.3608,88469.0,88436.0,0.3608]
[1765986351541,0.0223031,88491.0,88468.0,0.3608]
[1765986351739,0.011,88491.0,88460.0,0.5582]
[1765986352043,0.3608,88463.0,88417.0,0.3608]
[1765986352344,0.00016958,88450.0,88438.0,0.0113097]
[1765986352539,0.00016958,88450.0,88437.0,0.3608]
[1765986352540,0.00016958,88453.0,88441.0,0.0113093]
[1765986352746,0.3608,88464.0,88437.0,0.3608]
[1765986352931,0.62254318,88500.0,88435.0,0.00016958]
[1765986352932,0.3608,88484.0,88452.0,0.3608]
[1765986353243,0.3608,88487.0,88471.0,0.3608]
[1765986353445,0.3608,88472.0,88432.0,0.0113105]
[1765986353740,0.3608,88460.0,88447.0,0.2721085]
[1765986353937,0.3608,88460.0,88450.0,0.0113082]
[1765986354131,0.011,88491.0,88459.0,0.3608]
[1765986354330,0.3608,88506.0,88486.0,0.3608]
[1765986354533,0.3608,88506.0,88451.0,0.29864828]
[1765986354534,0.3608,88504.0,88462.0,0.3608]
[1765986354747,0.0113007,88510.0,88495.0,0.3608]
[1765986355144,0.00016958,88507.0,88495.0,0.3608]
[1765986355345,4e-08,88527.0,88506.0,0.3608]
[1765986355538,0.011,88551.0,88505.0,0.3608]
[1765986355740,0.011,88551.0,88527.0,0.3608]
[1765986355741,0.0112956,88550.0,88527.0,0.3608]
[1765986355935,0.3608,88529.0,88499.0,0.0113019]
[1765986356136,0.3608,88540.0,88512.0,0.3608]
[1765986356336,0.0112902,88592.0,88495.0,0.3608]
[1765986356337,0.00011172,88535.0,88517.0,0.00016948]
[1765986356648,0.00011172,88535.0,88527.0,0.3608]
[1765986357151,0.35091172,88545.0,88528.0,2.15788]
[1765986357346,0.35091172,88545.0,88527.0,0.3608]
[1765986357537,0.35091172,88545.0,88528.0,0.47276]
[1765986357848,0.3608,88533.0,88529.0,0.74372]
[1765986358045,0.0112931,88569.0,88540.0,0.48066]
[1765986358235,0.85146,88570.0,88547.0,0.3608]
[1765986358439,0.85146,88570.0,88546.0,0.01146287]
[1765986358440,0.3608,88562.0,88546.0,0.01146287]
[1765986358743,0.85146,88577.0,88547.0,0.7442]
[1765986358943,0.3608,88562.0,88546.0,2.87e-06]
[1765986359146,0.3608,88554.0,88547.0,0.34132]
[1765986359341,0.3608,88558.0,88545.0,0.3608]
[1765986359541,0.3608,88558.0,88546.0,0.284]
[1765986359750,0.00016903,88560.0,88550.0,0.3608]
[1765986359954,0.00016903,88560.0,88546.0,0.6448]
[1765986360249,0.00016903,88560.0,88551.0,0.3608]
[1765986360250,3e-08,88560.0,88551.0,0.3608]